bitfinex/quotes_BTCUSD_20240715
["timestamp","ask_amount","ask_price","bid_price","bid_amount"]
[1721021339515,1.81516976,62875.0,62874.0,0.027]
[1721021340242,2.15106976,62875.0,62874.0,0.014]
[1721021340410,0.42461785,62864.0,62860.0,0.063786]
[1721021340618,0.43453427,62864.0,62860.0,0.063786]
[1721021340826,0.29136827,62864.0,62860.0,0.063786]
[1721021341179,0.14956827,62864.0,62863.0,0.620268]
[1721021341579,0.14956827,62864.0,62863.0,0.4771]
[1721021342570,0.14956827,62864.0,62863.0,0.5031]
[1721021342775,0.14956827,62864.0,62863.0,0.026]
[1721021343184,0.13965185,62864.0,62863.0,0.026]
[1721021343384,0.14956743,62864.0,62863.0,0.026]
[1721021343590,0.13965185,62864.0,62863.0,0.026]
[1721021343807,0.14956742,62864.0,62863.0,0.026]
[1721021345042,0.14956742,62864.0,62863.0,0.169168]
[1721021349733,0.13965185,62864.0,62863.0,0.169168]
[1721021349931,0.14956742,62864.0,62863.0,0.169168]
[1721021350526,0.14956742,62864.0,62863.0,0.74184]
[1721021350725,0.1123443,62864.0,62863.0,0.74184]
[1721021351572,0.14956742,62864.0,62863.0,0.456417]
[1721021351784,0.14956742,62864.0,62863.0,0.026913]
[1721021352059,0.29366742,62864.0,62863.0,0.026913]
[1721021352198,0.14956742,62864.0,62863.0,0.026913]
[1721021352398,0.14956742,62864.0,62863.0,0.170081]
[1721021352600,0.14956742,62864.0,62863.0,0.521717]
[1721021353006,0.14956777,62864.0,62863.0,0.521717]
[1721021353255,0.14956777,62864.0,62863.0,0.235381]
[1721021353427,0.13965185,62864.0,62863.0,0.235381]
[1721021353630,0.14956774,62864.0,62863.0,0.235381]
[1721021354290,0.14956774,62864.0,62863.0,0.026913]
[1721021354856,0.22636774,62864.0,62863.0,0.026913]
[1721021356984,0.14956774,62864.0,62863.0,0.026913]
[1721021359072,0.63906574,62864.0,62863.0,0.026913]
[1721021359276,0.70166574,62864.0,62863.0,0.026913]
[1721021359491,0.64166574,62864.0,62863.0,0.026913]
[1721021359694,0.64166618,62864.0,62863.0,0.026913]
[1721021359894,1.25257383,62864.0,62863.0,0.026913]
[1721021360100,1.41860214,62864.0,62863.0,0.026913]
[1721021360304,1.88572266,62864.0,62863.0,0.026913]
[1721021360504,2.22877644,62864.0,62863.0,0.026913]
[1721021360707,1.7270542,62864.0,62863.0,0.026913]
[1721021360920,0.8943902,62864.0,62863.0,0.014913]
[1721021361125,0.8943902,62864.0,62863.0,0.000913]
[1721021361325,0.58407739,62864.0,62863.0,0.000913]
[1721021361525,0.44247739,62864.0,62863.0,0.000913]
[1721021361682,0.27447537,62864.0,62863.0,0.000913]
[1721021361883,0.34598262,62864.0,62863.0,0.000913]
[1721021362085,0.34898262,62864.0,62863.0,0.002913]
[1721021362472,0.32214513,62864.0,62863.0,0.000913]
[1721021362873,0.32214522,62864.0,62863.0,0.000913]
[1721021363331,0.22214522,62864.0,62863.0,0.000913]
[1721021363543,0.17447545,62864.0,62863.0,0.000913]
[1721021363680,0.14956826,62864.0,62863.0,0.000913]
[1721021363876,0.15056826,62864.0,62863.0,0.000913]
[1721021365358,0.17547527,62864.0,62863.0,0.000913]
[1721021365952,0.17547527,62864.0,62857.0,0.0831]
[1721021365953,0.13965185,62858.0,62857.0,0.369464]
[1721021366115,0.11234498,62858.0,62857.0,0.512646]
[1721021366313,0.00991625,62858.0,62857.0,0.512646]
[1721021366516,0.10242873,62860.0,62858.0,0.286359]
[1721021366719,0.01297976,62859.0,62858.0,0.286359]
[1721021367235,0.00991623,62859.0,62858.0,0.286359]
[1721021367602,0.00991623,62859.0,62858.0,0.429538]
[1721021368636,0.00991623,62859.0,62858.0,1.563056]
[1721021368843,0.10242873,62864.0,62863.0,0.286336]
[1721021369061,0.1123444,62864.0,62863.0,0.286336]
[1721021369489,0.11234419,62864.0,62863.0,0.286336]
[1721021369897,0.11234419,62864.0,62863.0,0.429504]
[1721021371266,0.11334419,62864.0,62863.0,0.429504]
[1721021372223,0.15056731,62864.0,62863.0,0.429504]
[1721021372765,0.15056727,62864.0,62863.0,0.429504]
[1721021373217,0.15037573,62864.0,62863.0,0.429504]
[1721021374186,0.15037573,62864.0,62863.0,0.493287]
[1721021375448,0.15037573,62864.0,62863.0,0.063783]
[1721021376038,0.14046042,62864.0,62863.0,0.063783]
[1721021376207,0.15037597,62864.0,62863.0,0.063783]
[1721021376420,0.15037597,62864.0,62863.0,0.206951]
[1721021376601,0.11315285,62864.0,62863.0,0.493287]
[1721021377986,0.15037597,62864.0,62863.0,0.206951]
[1721021378290,0.21177597,62864.0,62863.0,0.206951]
[1721021378808,0.15037597,62864.0,62863.0,0.206951]
[1721021379442,0.15037591,62864.0,62863.0,0.206951]
[1721021381276,0.15037591,62864.0,62863.0,0.493287]
[1721021382011,0.15037591,62864.0,62863.0,0.556387]
[1721021382995,0.14046042,62864.0,62863.0,0.556387]
[1721021383198,0.1503759,62864.0,62863.0,0.556387]
[1721021385300,0.19810767,62864.0,62863.0,0.493287]
[1721021385923,0.19810765,62864.0,62863.0,0.493287]
[1721021386298,0.19893765,62864.0,62863.0,0.493287]
[1721021386701,0.19893765,62864.0,62863.0,0.206951]
[1721021386961,0.17611157,62864.0,62863.0,0.063783]
[1721021387247,0.29776941,62864.0,62863.0,0.063783]
[1721021387447,0.32267511,62864.0,62863.0,0.063783]
[1721021387680,0.17917511,62864.0,62863.0,0.063783]
[1721021387881,0.17611158,62864.0,62863.0,0.063783]
[1721021388083,0.25931158,62864.0,62863.0,0.063783]
[1721021388324,0.03971469,62864.0,62863.0,0.209183]
[1721021388532,0.00183,62864.0,62863.0,3.09607908]
[1721021388735,0.00063857,62875.0,62873.0,0.62134808]
[1721021388906,0.00063857,62875.0,62873.0,1.79176608]
[1721021389141,0.00063857,62875.0,62873.0,2.07805708]
[1721021390169,0.00063857,62875.0,62873.0,2.17805708]
[1721021391195,0.00063857,62875.0,62873.0,2.73204808]
[1721021391542,0.00063857,62875.0,62873.0,2.74604808]
[1721021392132,0.00063857,62875.0,62873.0,2.76004808]
[1721021392500,0.00063857,62875.0,62873.0,2.73204808]
[1721021392800,0.00063857,62875.0,62873.0,2.76004808]
[1721021393139,0.00063857,62875.0,62873.0,2.74604808]
[1721021393770,0.00063857,62875.0,62873.0,2.76004808]
[1721021394816,0.00063857,62875.0,62873.0,2.98644808]
[1721021395446,0.00063857,62875.0,62873.0,2.97244808]
[1721021395915,0.00063857,62875.0,62873.0,2.98644808]
[1721021396273,0.00063857,62875.0,62873.0,2.97244808]
[1721021397231,0.00063857,62875.0,62873.0,2.98213632]
[1721021398135,0.00063857,62875.0,62873.0,3.09613632]
[1721021398335,0.00063857,62875.0,62873.0,3.08213632]
[1721021398546,0.00063857,62875.0,62873.0,3.06813632]
[1721021398737,0.00063857,62875.0,62873.0,3.08213632]
[1721021398968,0.00063857,62875.0,62873.0,3.09613632]
[1721021399938,0.00063857,62875.0,62873.0,3.42823632]
[1721021400459,0.00063857,62875.0,62873.0,3.74643732]
[1721021401317,0.00063857,62875.0,62873.0,3.71843732]
[1721021401522,0.00063857,62875.0,62873.0,3.70443732]
[1721021401787,0.00063857,62875.0,62874.0,2.48620708]
[1721021401947,0.00063857,62875.0,62874.0,3.25513748]
[1721021402484,0.00834,62885.0,62884.0,2.63707308]
[1721021402659,0.00834,62885.0,62884.0,3.30452308]
[1721021403218,0.00834,62885.0,62884.0,3.47222308]
[1721021403842,0.00834,62885.0,62884.0,3.24582308]
[1721021405436,0.00834,62885.0,62884.0,3.25982308]
[1721021405637,0.00834,62885.0,62884.0,3.37382308]
[1721021405831,0.00834,62885.0,62884.0,3.66006408]
[1721021406055,0.00834,62885.0,62884.0,3.67797408]
[1721021406272,0.00834,62885.0,62884.0,3.69197408]
[1721021406470,0.00834,62885.0,62884.0,3.67797408]
[1721021406832,0.00834,62885.0,62884.0,3.81007149]
[1721021407050,0.00835,62891.0,62884.0,3.81007149]
[1721021407051,0.00835,62891.0,62889.0,0.46445708]
[1721021407254,0.00835,62891.0,62890.0,0.63215508]
[1721021407461,1e-06,62893.0,62892.0,1.16445008]
[1721021407585,1e-06,62893.0,62892.0,3.07028608]
[1721021407786,1e-06,62893.0,62892.0,3.22536828]
[1721021407987,1e-06,62893.0,62892.0,3.79777628]
[1721021409405,1e-06,62893.0,62892.0,3.81177628]
[1721021409821,1e-06,62893.0,62892.0,3.82577628]
[1721021410464,0.00834,62902.0,62899.0,3.08108208]
[1721021410636,0.00834,62902.0,62899.0,4.22168248]
[1721021412876,0.00834,62902.0,62899.0,4.23568248]
[1721021413609,0.00834,62902.0,62899.0,4.24968248]
[1721021414220,0.00834,62902.0,62899.0,4.38176271]
[1721021414721,0.00834,62902.0,62899.0,4.36776271]
[1721021415101,0.00834,62902.0,62899.0,4.38176271]
[1721021415281,0.00834,62902.0,62899.0,4.39244419]
[1721021415481,0.00834,62902.0,62899.0,4.37844419]
[1721021415708,0.00834,62902.0,62899.0,4.05061379]
[1721021416646,0.00834,62902.0,62899.0,2.50909509]
[1721021416932,0.07314,62905.0,62904.0,1.501525]
[1721021417156,0.07314,62905.0,62904.0,1.533315]
[1721021417157,0.1753773,62905.0,62904.0,1.533315]
[1721021417361,0.15464,62905.0,62904.0,1.54387958]
[1721021417675,0.15464,62905.0,62904.0,1.60761158]
[1721021418100,0.00834,62905.0,62904.0,2.17991158]
[1721021418311,0.00834,62905.0,62904.0,2.20349696]
[1721021418504,0.00834,62905.0,62904.0,1.91734696]
[1721021418705,0.00834,62905.0,62904.0,1.89376158]
[1721021419270,0.00834,62905.0,62904.0,1.91676158]
[1721021419681,0.00834,62905.0,62904.0,1.96834696]
[1721021420219,0.2535773,62905.0,62904.0,1.92176158]
[1721021420445,0.15134,62905.0,62904.0,1.42176158]
[1721021420654,0.15134,62905.0,62904.0,1.92176158]
[1721021421207,0.15134,62905.0,62904.0,1.90776158]
[1721021421603,0.15134,62905.0,62904.0,1.92176158]
[1721021421808,0.13875,62905.0,62904.0,1.92176158]
[1721021424264,0.13875,62905.0,62904.0,1.94534696]
[1721021424487,0.2409873,62905.0,62904.0,1.92176158]
[1721021424775,0.13875,62905.0,62904.0,1.92176158]
[1721021427384,0.13875,62905.0,62904.0,1.94534696]
[1721021427647,0.00834,62909.0,62908.0,0.02358538]
[1721021427858,0.00834,62909.0,62908.0,1.02504738]
[1721021428063,0.00834,62909.0,62908.0,1.76047809]
[1721021428260,0.00834,62909.0,62908.0,1.99256347]
[1721021428959,0.00834,62909.0,62908.0,1.90880077]
[1721021429360,0.1761773,62909.0,62908.0,1.18995139]
[1721021429498,0.21259192,62909.0,62908.0,1.54386601]
[1721021429734,0.1761773,62909.0,62908.0,1.55786601]
[1721021429937,0.1761773,62909.0,62908.0,1.54386601]
[1721021430185,0.1761773,62909.0,62908.0,1.04386601]
[1721021430837,0.1761773,62909.0,62908.0,1.36758339]
[1721021430838,0.07394,62909.0,62908.0,1.36758339]
[1721021431036,0.07394,62909.0,62908.0,1.38158339]
[1721021431332,0.07394,62909.0,62908.0,1.36758339]
[1721021431538,0.07394,62909.0,62908.0,1.35358339]
[1721021431753,0.00834,62909.0,62908.0,1.35358339]
[1721021431951,0.00834,62909.0,62908.0,1.36758339]
[1721021432064,0.00834,62909.0,62908.0,1.49967007]
[1721021432313,0.00814866,62909.0,62908.0,1.49967121]
[1721021432696,0.00814866,62909.0,62908.0,1.37658339]
[1721021432896,0.00814866,62909.0,62908.0,1.85799801]
[1721021433033,0.00814866,62909.0,62908.0,1.84399801]
[1721021433034,0.15344866,62909.0,62908.0,1.84399801]
[1721021433448,0.15344866,62909.0,62908.0,1.85799801]
[1721021433658,0.15344866,62909.0,62908.0,1.88158339]
[1721021433862,0.07134866,62909.0,62908.0,1.86758339]
[1721021434071,0.07134866,62909.0,62908.0,1.88158339]
[1721021434275,0.00814866,62909.0,62908.0,1.86758339]
[1721021434489,0.00814866,62909.0,62908.0,2.02267246]
[1721021434744,0.00814866,62909.0,62908.0,1.90458339]
[1721021435144,0.00814866,62909.0,62908.0,1.89058339]
[1721021435347,0.00814866,62909.0,62908.0,2.02267212]
[1721021435580,0.00814866,62909.0,62908.0,2.03667106]
[1721021435766,0.00814866,62909.0,62908.0,1.90458339]
[1721021437849,0.00814866,62909.0,62908.0,1.9141711]
[1721021438713,0.00814866,62909.0,62908.0,2.04625754]
[1721021438874,0.00814866,62909.0,62908.0,2.14625754]
[1721021439097,0.00814866,62909.0,62908.0,2.24402024]
[1721021439312,0.00814866,62909.0,62908.0,2.43238954]
[1721021439528,0.00814866,62909.0,62908.0,2.14625754]
[1721021439822,0.00814866,62909.0,62908.0,2.49678954]
[1721021440262,0.00814866,62909.0,62908.0,2.5945472]
[1721021440661,0.00814866,62909.0,62908.0,2.59454215]
[1721021441639,0.00814866,62909.0,62908.0,2.86667415]
[1721021441908,0.00814866,62909.0,62908.0,2.95267415]
[1721021442240,0.00814866,62909.0,62908.0,2.98067415]
[1721021442642,0.00814866,62909.0,62908.0,2.96667415]
[1721021443075,0.00814866,62909.0,62908.0,2.98067415]
[1721021443445,0.00814866,62909.0,62908.0,2.96667083]
[1721021443851,0.00834,62912.0,62911.0,1.77657908]
[1721021444065,0.0779,62935.0,62927.0,0.95265238]
[1721021444265,0.1105673,62937.0,62927.0,2.44938008]
[1721021444266,0.00833,62937.0,62927.0,2.44938008]
[1721021444505,0.00833,62937.0,62927.0,3.30624921]
[1721021444755,0.00833,62937.0,62927.0,2.92244151]
[1721021444968,0.00833,62937.0,62927.0,2.72244151]
[1721021445170,0.0826,62933.0,62927.0,2.06682028]
[1721021445374,0.0826,62933.0,62927.0,1.76257526]
[1721021445572,0.0826,62933.0,62927.0,2.27657526]
[1721021446027,0.0826,62933.0,62927.0,1.76257526]
[1721021446228,0.0826,62933.0,62927.0,2.26257526]
[1721021446447,0.0826,62933.0,62927.0,1.96694488]
[1721021446448,0.1022373,62931.0,62927.0,1.96694488]
[1721021446646,0.0652,62931.0,62927.0,1.96694488]
[1721021446847,0.0652,62931.0,62927.0,1.98094488]
[1721021447411,0.1032373,62929.0,62927.0,1.95794488]
[1721021447577,0.001,62929.0,62927.0,1.97194488]
[1721021447786,0.1032373,62929.0,62927.0,1.87194488]
[1721021447995,0.14137571,62928.0,62927.0,1.08089988]
[1721021448402,0.00191529,62928.0,62927.0,1.08089988]
[1721021448604,0.00191529,62928.0,62927.0,1.58089988]
[1721021448831,0.00191529,62928.0,62927.0,1.53889988]
[1721021448964,0.00191529,62928.0,62927.0,0.32878788]
[1721021448965,0.65492809,62928.0,62927.0,0.32878788]
[1721021449167,1.09389478,62928.0,62927.0,0.34278788]
[1721021449601,1.09389572,62928.0,62927.0,0.34278788]
[1721021449955,1.09389572,62928.0,62927.0,0.33183]
[1721021450154,1.14147078,62928.0,62927.0,0.34583]
[1721021450354,0.27796042,62914.0,62913.0,0.643054]
[1721021450602,0.27796042,62914.0,62913.0,0.5]
[1721021451201,0.13946042,62912.0,62911.0,0.143057]
[1721021451658,0.1022373,62913.0,62912.0,0.429169]
[1721021452190,0.1022373,62913.0,62912.0,0.715282]
[1721021452621,0.13946042,62913.0,62912.0,0.715282]
[1721021452860,0.1022373,62913.0,62912.0,0.443169]
[1721021453191,0.17572312,62914.0,62912.0,0.443169]
[1721021453192,0.1385,62914.0,62913.0,0.429163]
[1721021453334,0.1385,62914.0,62913.0,0.715272]
[1721021454128,0.2407373,62914.0,62913.0,0.715272]
[1721021454340,0.27796042,62914.0,62913.0,0.715272]
[1721021454792,0.27796042,62914.0,62913.0,0.729272]
[1721021455397,0.27896042,62914.0,62913.0,0.742272]
[1721021455797,0.27896042,62914.0,62913.0,0.456163]
[1721021457889,0.27896042,62914.0,62913.0,0.027]
[1721021458865,0.48201242,62914.0,62913.0,0.027]
[1721021459057,1.13901427,62914.0,62913.0,0.027]
[1721021459229,1.08151191,62914.0,62913.0,0.027]
[1721021459430,1.09142071,62914.0,62913.0,0.027]
[1721021459643,1.08151191,62914.0,62913.0,0.027]
[1721021459809,1.11631151,62914.0,62913.0,0.027]
[1721021460030,1.21050311,62914.0,62913.0,0.014]
[1721021460236,0.77323742,62911.0,62910.0,0.2]
[1721021460588,0.78314673,62911.0,62910.0,0.2]
[1721021461025,1.06926473,62911.0,62910.0,0.2]
[1721021461201,1.11685933,62911.0,62910.0,0.2]
[1721021461354,0.78314673,62911.0,62910.0,0.2]
[1721021461762,0.78314652,62911.0,62910.0,0.2]
[1721021462646,0.78314652,62911.0,62910.0,0.201]
[1721021462647,0.30096952,62911.0,62910.0,0.201]
[1721021463303,0.29106042,62911.0,62910.0,0.201]
[1721021463499,0.29506042,62911.0,62910.0,0.201]
[1721021464150,0.29606042,62911.0,62910.0,0.201]
[1721021464353,0.43911942,62911.0,62910.0,0.201]
[1721021464560,0.44902808,62911.0,62910.0,0.201]
[1721021464764,0.29896901,62911.0,62910.0,0.2]
[1721021465000,0.28906042,62911.0,62910.0,0.2]
[1721021465176,0.29206042,62911.0,62910.0,0.2]
[1721021465404,0.30196915,62911.0,62910.0,0.2]
[1721021465609,0.20196915,62911.0,62910.0,0.2]
[1721021465835,0.19896915,62911.0,62910.0,0.2]
[1721021466037,0.18906042,62911.0,62910.0,0.2]
[1721021466258,0.18906042,62911.0,62910.0,0.343061]
[1721021466712,0.18906042,62911.0,62910.0,0.629184]
[1721021466922,0.18406042,62911.0,62910.0,0.2]
[1721021467150,0.18406042,62911.0,62910.0,0.202]
[1721021467662,0.18406042,62911.0,62910.0,0.343061]
[1721021467842,0.18406042,62911.0,62910.0,0.204]
[1721021468048,0.18406042,62911.0,62910.0,0.633184]
[1721021468242,0.143039,62920.0,62910.0,0.633184]
[1721021468243,0.063,62915.0,62914.0,0.429156]
[1721021468447,0.10246042,62915.0,62914.0,0.71526]
[1721021468656,0.03946042,62915.0,62914.0,0.71526]
[1721021469113,0.03946042,62917.0,62916.0,0.429142]
[1721021469726,0.03946042,62917.0,62916.0,0.715237]
[1721021471274,0.03946042,62922.0,62915.0,0.5]
[1721021471488,0.03946042,62922.0,62921.0,0.143036]
[1721021471692,0.03946042,62922.0,62921.0,0.715182]
[1721021472105,0.03946042,62923.0,62922.0,0.71517]
[1721021472307,0.03946042,62923.0,62922.0,0.143034]
[1721021472508,0.03946042,62923.0,62922.0,0.427102]
[1721021473413,0.03946042,62923.0,62922.0,0.426102]
[1721021473990,0.04046042,62923.0,62922.0,0.434102]
[1721021474235,0.16046042,62923.0,62922.0,0.008]
[1721021474456,0.04046042,62923.0,62922.0,0.019]
[1721021474830,0.04046042,62923.0,62922.0,0.008]
[1721021475040,0.04046042,62923.0,62922.0,0.019]
[1721021475435,0.04046042,62923.0,62922.0,0.008]
[1721021475665,0.04046042,62923.0,62922.0,0.151034]
[1721021476002,0.03946042,62923.0,62922.0,0.143034]
[1721021476186,0.03946042,62921.0,62920.0,0.1]
[1721021476787,0.00306353,62925.0,62924.0,0.5]
[1721021476996,0.00274529,62928.0,62927.0,0.429067]
[1721021477198,0.00274529,62928.0,62927.0,0.714112]
[1721021477438,0.00274529,62928.0,62927.0,1.000157]
[1721021478301,0.00274529,62928.0,62927.0,1.120157]
[1721021478686,0.00274529,62928.0,62927.0,1.126157]
[1721021479268,0.00274529,62928.0,62927.0,2.29478658]
[1721021479505,0.00274529,62928.0,62927.0,2.86644158]
[1721021479705,0.00274529,62928.0,62927.0,2.16644158]
[1721021480002,0.00274529,62928.0,62927.0,2.473502]
[1721021480203,0.00274529,62928.0,62927.0,2.387502]
[1721021480361,0.00374529,62928.0,62927.0,2.401502]
[1721021480708,0.00374529,62928.0,62927.0,2.267502]
[1721021480867,0.00274529,62928.0,62927.0,2.267502]
[1721021481065,0.00274529,62928.0,62927.0,2.373502]
[1721021481266,0.00374529,62928.0,62927.0,2.387502]
[1721021481466,2.9e-07,62929.0,62928.0,2.68471558]
[1721021481829,2.9e-07,62929.0,62928.0,2.80771558]
[1721021482768,2.9e-07,62929.0,62928.0,3.50771558]
[1721021482977,2.9e-07,62929.0,62928.0,3.22167458]
[1721021483173,2.9e-07,62929.0,62928.0,2.52167458]
[1721021483376,2.9e-07,62929.0,62928.0,3.22167458]
[1721021483582,2.9e-07,62929.0,62928.0,3.22067458]
[1721021483783,0.01139353,62948.0,62947.0,0.961977]
[1721021484021,0.01139353,62948.0,62947.0,1.084977]
[1721021484281,0.01139353,62948.0,62947.0,1.337885]
[1721021484518,0.01139353,62948.0,62947.0,1.314885]
[1721021484519,0.00833,62948.0,62947.0,1.314885]
[1721021484978,0.00833,62948.0,62947.0,1.600839]
[1721021485412,0.04879042,62948.0,62947.0,1.600839]
[1721021485625,0.00833,62948.0,62947.0,1.600839]
[1721021486525,0.00933,62948.0,62947.0,1.628839]
[1721021486723,0.00933,62948.0,62947.0,1.128839]
[1721021486981,0.00833,62948.0,62947.0,1.881439]
[1721021487181,0.00833,62948.0,62947.0,2.61863258]
[1721021487396,0.00833,62948.0,62947.0,2.63263258]
[1721021487397,0.00933,62948.0,62947.0,2.63263258]
[1721021487758,0.00933,62948.0,62947.0,2.64663258]
[1721021487937,0.00833,62948.0,62947.0,2.63263258]
[1721021488139,0.00833,62948.0,62947.0,2.344093]
[1721021488355,0.00933,62948.0,62947.0,2.61863258]
[1721021488563,0.00933,62948.0,62947.0,2.190393]
[1721021489559,0.00933,62948.0,62947.0,2.204393]
[1721021489761,0.00833,62948.0,62947.0,2.176393]
[1721021490216,0.00833,62948.0,62947.0,1.704393]
[1721021490217,0.00933,62948.0,62947.0,1.704393]
[1721021490407,0.00933,62948.0,62947.0,2.204393]
[1721021490638,0.00833,62948.0,62947.0,2.190393]
[1721021491064,0.00933,62948.0,62947.0,2.190393]
[1721021491278,0.00933,62948.0,62947.0,2.758047]
[1721021491473,0.00833,62948.0,62947.0,3.00458658]
[1721021492055,0.00833,62948.0,62947.0,2.49990165]
[1721021492647,0.00833,62948.0,62947.0,2.48590165]
[1721021492842,0.00833,62948.0,62947.0,2.54957865]
[1721021493058,0.00833,62948.0,62947.0,3.27777223]
[1721021493260,0.00833,62948.0,62947.0,3.26377223]
[1721021493752,0.00833,62948.0,62947.0,3.29177223]
[1721021493753,0.00933,62948.0,62947.0,3.29177223]
[1721021493948,0.00933,62948.0,62947.0,3.27777223]
[1721021494214,0.00833,62948.0,62947.0,3.61341223]
[1721021494420,0.00833,62948.0,62947.0,3.62741223]
[1721021494554,0.00933,62948.0,62947.0,3.64141223]
[1721021495195,0.00833,62948.0,62947.0,3.62741223]
[1721021495420,0.00933,62948.0,62947.0,3.64141223]
[1721021495539,5.001,62949.0,62947.0,3.64141223]
[1721021495540,5.001,62949.0,62948.0,1.96592458]
[1721021495737,5.001,62949.0,62948.0,3.03419289]
[1721021495940,5.001,62949.0,62948.0,3.32014289]
[1721021496495,5.001,62949.0,62948.0,3.60609289]
[1721021497005,4.96177952,62949.0,62948.0,4.06762618]
[1721021497160,3.20388163,62949.0,62948.0,4.92855118]
[1721021497506,3.20388163,62949.0,62948.0,5.03722433]
[1721021497507,0.99601328,62949.0,62948.0,5.03722433]
[1721021497657,0.99601328,62949.0,62948.0,5.02230118]
[1721021498082,0.99701328,62949.0,62948.0,5.73630118]
[1721021498287,0.18155532,62949.0,62948.0,5.79608686]
[1721021498485,0.08504553,62949.0,62948.0,5.93708845]
[1721021498662,0.00833,62963.0,62962.0,2.95152258]
[1721021498849,0.08411591,62980.0,62971.0,0.882312]
[1721021499043,0.14335238,62973.0,62971.0,1.346377]
[1721021499245,0.14335238,62973.0,62971.0,0.41761]
[1721021499246,0.1828128,62973.0,62971.0,0.41761]
[1721021499491,0.04879042,62972.0,62971.0,0.81761]
[1721021499695,0.23473,62972.0,62971.0,1.246377]
[1721021499895,0.23473,62972.0,62971.0,1.532222]
[1721021500455,0.00833,62972.0,62971.0,1.546222]
[1721021500660,0.00833,62972.0,62971.0,1.818067]
[1721021501267,0.00833,62972.0,62971.0,1.831067]
[1721021501465,0.27419042,62972.0,62971.0,1.259377]
[1721021501687,0.23473,62972.0,62971.0,1.259377]
[1721021502089,0.23473,62972.0,62971.0,1.273377]
[1721021502534,0.23473,62972.0,62971.0,1.259377]
[1721021502735,0.23473,62972.0,62971.0,1.559222]
[1721021502971,0.23473,62972.0,62971.0,1.273377]
[1721021503142,0.23473,62972.0,62971.0,1.259377]
[1721021503342,0.23473,62972.0,62971.0,0.746377]
[1721021503542,0.23473,62972.0,62971.0,1.059222]
[1721021503746,0.23473,62972.0,62971.0,1.045222]
[1721021503943,0.23473,62972.0,62971.0,1.545222]
[1721021504265,0.23473,62972.0,62971.0,1.260377]
[1721021504505,0.23473,62972.0,62971.0,1.559222]
[1721021505022,0.00833,62972.0,62971.0,1.546222]
[1721021505223,0.04879042,62972.0,62971.0,1.274377]
[1721021505435,0.04879042,62972.0,62971.0,0.774377]
[1721021506058,0.31179042,62972.0,62971.0,0.34561]
[1721021506276,0.19179042,62972.0,62971.0,0.34561]
[1721021506506,0.74055142,62972.0,62971.0,0.33161]
[1721021506860,0.11586042,62957.0,62956.0,0.9863143]
[1721021507056,0.11586042,62957.0,62956.0,0.6292703]
[1721021507057,0.40736042,62957.0,62956.0,0.6292703]
[1721021507295,0.2264,62957.0,62956.0,1.214782]
[1721021507438,0.26686042,62957.0,62956.0,0.642956]
[1721021507880,0.04046042,62948.0,62947.0,0.563677]
[1721021508075,0.26686042,62948.0,62947.0,0.563677]
[1721021508893,0.26686042,62948.0,62947.0,0.063677]
[1721021509920,0.40946042,62948.0,62947.0,0.063677]
[1721021510497,1.0404378,62948.0,62940.0,0.5]
[1721021510704,0.04046042,62930.0,62929.0,0.286035]
[1721021510899,0.41246042,62931.0,62930.0,0.643016]
[1721021511128,0.41246042,62931.0,62921.0,0.286071]
[1721021511129,0.03946042,62928.0,62925.0,0.286054]
[1721021511339,0.41146042,62931.0,62930.0,0.5]
[1721021511531,0.372,62931.0,62930.0,0.929048]
[1721021511735,0.2264,62937.0,62936.0,0.643002]
[1721021511972,0.2264,62937.0,62936.0,0.929006]
[1721021512163,0.2264,62943.0,62942.0,0.142988]
[1721021512376,0.26586042,62943.0,62942.0,0.714942]
[1721021512522,0.26586042,62943.0,62936.0,0.5]
[1721021512718,0.062,62945.0,62924.0,0.26053958]
[1721021512719,0.2264,62937.0,62927.0,0.119]
[1721021512927,0.2264,62937.0,62936.0,0.643002]
[1721021513132,0.2264,62937.0,62936.0,0.929006]
[1721021513354,0.2264,62937.0,62936.0,1.21401]
[1721021513552,0.2264,62937.0,62936.0,1.21301]
[1721021513990,0.2274,62937.0,62936.0,1.21301]
[1721021514218,0.2274,62937.0,62936.0,1.499014]
[1721021514425,0.2264,62937.0,62936.0,1.499014]
[1721021514637,0.2264,62937.0,62936.0,1.22701]
[1721021514638,0.2284,62937.0,62936.0,1.22701]
[1721021514767,0.2284,62937.0,62936.0,1.34601]
[1721021514972,0.062,62945.0,62944.0,1.21492]
[1721021515852,0.10146042,62945.0,62944.0,0.928952]
[1721021516008,0.10246042,62945.0,62944.0,0.928952]
[1721021516184,0.10246042,62945.0,62944.0,0.142984]
[1721021516385,0.10533272,62945.0,62944.0,0.141984]
[1721021516991,0.03946042,62942.0,62941.0,0.928972]
[1721021517192,0.03946042,62943.0,62942.0,0.642988]
[1721021517398,0.03946042,62943.0,62942.0,0.928965]
[1721021517596,0.04252395,62944.0,62943.0,0.142986]
[1721021517939,0.00306353,62944.0,62943.0,0.714932]
[1721021518282,0.00306353,62944.0,62943.0,0.833932]
[1721021518479,0.00306353,62944.0,62943.0,1.000905]
[1721021519187,0.00306353,62944.0,62943.0,0.714932]
[1721021519602,0.04352395,62944.0,62943.0,1.214932]
[1721021519802,0.04352395,62944.0,62942.0,0.012]
[1721021520038,0.04046042,62943.0,62942.0,0.012]
[1721021520246,0.37787493,62943.0,62942.0,0.012]
[1721021520439,0.001,62937.0,62936.0,0.000913]
[1721021520697,0.12076042,62937.0,62936.0,0.000913]
[1721021521589,0.30526042,62937.0,62936.0,0.000913]
[1721021521805,0.30526042,62937.0,62936.0,0.013913]
[1721021522014,0.30626042,62937.0,62936.0,0.015913]
[1721021522818,0.73526042,62937.0,62936.0,0.015913]
[1721021523506,0.73526042,62937.0,62926.0,0.063706]
[1721021523507,0.18716042,62927.0,62926.0,0.063706]
[1721021523789,0.53356042,62927.0,62926.0,0.063706]
[1721021524193,0.41356042,62927.0,62926.0,0.563706]
[1721021524348,0.41356042,62927.0,62926.0,0.063706]
[1721021524951,0.53356042,62927.0,62926.0,0.063706]
[1721021525349,0.41356042,62927.0,62926.0,0.064706]
[1721021525554,0.41356042,62927.0,62926.0,0.065706]
[1721021525936,0.53356042,62927.0,62926.0,0.065706]
[1721021526759,0.53356042,62927.0,62926.0,0.064706]
[1721021526760,0.67658242,62927.0,62926.0,0.064706]